fUST/lending_fUST_20250901
["ID","MTS","AMOUNT","RATE_DAILY","PERIOD"]
[382676849,1756707033454,-480.0,0.00014026,2]
[382676850,1756707033464,-480.0,0.00014026,2]
[382676851,1756707033474,-480.0,0.00014026,2]
[382676852,1756707033485,-480.0,0.00014026,2]
[382676853,1756707033495,-480.0,0.00014026,2]
[382676854,1756707033505,-484.35826867,0.00014026,2]
[382676855,1756707033516,-480.0,0.00014026,2]
[382676856,1756707033525,-597.22,0.00014026,2]
[382676857,1756707033535,-480.0,0.00014026,2]
[382676858,1756707033544,-480.0,0.00014026,2]
[382676859,1756707033554,-904.31,0.00014026,2]
[382676860,1756707033563,-871.08,0.00014026,2]
[382676861,1756707033572,-583.47,0.00014026,2]
[382676862,1756707033582,-480.0,0.00014026,2]
[382676863,1756707033591,-480.0,0.00014026,2]
[382676864,1756707033606,-480.0,0.00014026,2]
[382676865,1756707033616,-480.0,0.00014026,2]
[382676866,1756707033626,-480.0,0.00014026,2]
[382676867,1756707033636,-480.0,0.00014026,2]
[382676868,1756707033646,-603.81,0.00014026,2]
[382676869,1756707033656,-480.0,0.00014026,2]
[382676870,1756707033665,-225.36048966,0.00014026,2]
[382676871,1756707033675,-480.0,0.00014026,2]
[382676872,1756707033684,-839.74,0.00014026,2]
[382676873,1756707033694,-480.0,0.00014026,2]
[382676874,1756707033703,-480.0,0.00014026,2]
[382676875,1756707033713,-480.0,0.00014026,2]
[382676876,1756707033723,-603.47,0.00014026,2]
[382676877,1756707033733,-480.0,0.00014026,2]
[382676878,1756707033743,-708.19,0.00014026,2]
[382676879,1756707033753,-480.0,0.00014026,2]
[382676880,1756707033762,-480.0,0.00014026,2]
[382676881,1756707033771,-480.0,0.00014026,2]
[382676882,1756707033781,-480.0,0.00014026,2]
[382676883,1756707033790,-744.02,0.00014026,2]
[382676884,1756707033799,-511.25,0.00014026,2]
[382676885,1756707033809,-480.0,0.00014026,2]
[382676886,1756707033818,-1126.25,0.00014026,2]
[382676887,1756707033827,-490.68,0.00014026,2]
[382676888,1756707033837,-480.0,0.00014026,2]
[382676889,1756707033846,-480.0,0.00014026,2]
[382676890,1756707033857,-965.21,0.00014026,2]
[382676891,1756707033866,-718.27,0.00014026,2]
[382676892,1756707033875,-480.0,0.00014026,2]
[382676893,1756707033885,-678.38,0.00014026,2]
[382676894,1756707033894,-480.0,0.00014026,2]
[382676895,1756707033903,-480.0,0.00014026,2]
[382676896,1756707033913,-970.36,0.00014026,2]
[382676897,1756707033923,-480.0,0.00014026,2]
[382676898,1756707033932,-480.0,0.00014026,2]
[382676899,1756707033942,-480.0,0.00014026,2]
[382676900,1756707033951,-584.68,0.00014026,2]
[382676901,1756707033960,-480.0,0.00014026,2]
[382676902,1756707033970,-480.0,0.00014026,2]
[382676903,1756707033979,-480.0,0.00014026,2]
[382676904,1756707033989,-542.38,0.00014026,2]
[382676905,1756707033999,-480.0,0.00014026,2]
[382676906,1756707034008,-480.0,0.00014026,2]
[382676907,1756707034018,-573.41,0.00014026,2]
[382676908,1756707034027,-480.0,0.00014026,2]
[382676909,1756707034037,-926.21,0.00014026,2]
[382676910,1756707034046,-480.0,0.00014026,2]
[382676911,1756707034055,-480.0,0.00014026,2]
[382676912,1756707034064,-682.96,0.00014026,2]
[382676913,1756707034074,-1758.04,0.00014026,2]
[382676914,1756707034083,-495.1,0.00014026,2]
[382676915,1756707034092,-480.0,0.00014026,2]
[382676916,1756707034103,-480.0,0.00014026,2]
[382676917,1756707034113,-646.43,0.00014026,2]
[382676918,1756707034122,-480.0,0.00014026,2]
[382676919,1756707034131,-480.0,0.00014026,2]
[382676920,1756707034141,-480.0,0.00014026,2]
[382676921,1756707034150,-480.0,0.00014026,2]
[382676922,1756707034159,-579.54209287,0.00014026,2]
[382676923,1756707034169,-480.0,0.00014026,2]
[382676924,1756707034178,-1512.45,0.00014026,2]
[382676925,1756707034188,-399.56277113,0.00014027,2]
[382676931,1756707038606,-276.79453564,0.00014022,2]
[382676932,1756707038616,-24.9791969,0.00014025,2]
[382676933,1756707038724,-475.0208031,0.00014025,2]
[382676934,1756707038733,-204.18046899,0.00014025,2]
[382676935,1756707038743,-195.71045598,0.00014025,2]
[382676936,1756707038752,-480.0,0.00014026,2]
[382676937,1756707038762,-500.0,0.00014026,2]
[382676938,1756707038771,-500.0,0.00014026,2]
[382676939,1756707038781,-500.0,0.00014026,2]
[382676940,1756707038791,-500.0,0.00014026,2]
[382676942,1756707038800,-500.0,0.00014026,2]
[382676944,1756707038810,-558.28651707,0.00014026,2]
[382676946,1756707038820,-500.0,0.00014026,2]
[382676948,1756707038829,-500.0,0.00014026,2]
[382676949,1756707038838,-500.0,0.00014026,2]
[382676950,1756707038848,-500.0,0.00014026,2]
[382676951,1756707038859,-500.0,0.00014026,2]
[382676952,1756707038868,-500.0,0.00014026,2]
[382676953,1756707038878,-500.0,0.00014026,2]
[382676955,1756707038888,-500.0,0.00014026,2]
[382676956,1756707038897,-203.01101397,0.00014027,2]
[382676957,1756707038906,-368.00354687,0.00014027,2]
[382676958,1756707038916,-480.0,0.00014027,2]
[382676959,1756707038925,-480.0,0.00014027,2]
[382676960,1756707038935,-480.0,0.00014027,2]
[382676961,1756707038945,-480.0,0.00014027,2]
[382676962,1756707038955,-480.0,0.00014027,2]
[382676963,1756707038965,-480.0,0.00014027,2]
[382676964,1756707038974,-214.16707778,0.00014027,2]
[382676965,1756707038983,-480.0,0.00014027,2]
[382676966,1756707038992,-480.0,0.00014027,2]
[382676967,1756707039002,-480.0,0.00014027,2]
[382676968,1756707039012,-480.0,0.00014027,2]
[382676969,1756707039021,-480.0,0.00014027,2]
[382676970,1756707039030,-501.23,0.00014027,2]
[382676971,1756707039039,-480.0,0.00014027,2]
[382676972,1756707039049,-480.0,0.00014027,2]
[382676973,1756707039058,-550.41954453,0.00014027,2]
[382676974,1756707039068,-480.0,0.00014027,2]
[382676975,1756707039077,-480.0,0.00014027,2]
[382676976,1756707039087,-151.52797279,0.00014027,2]
[382676977,1756707039096,-480.0,0.00014027,2]
[382676978,1756707039107,-480.0,0.00014027,2]
[382676979,1756707039116,-407.6513577,0.00014027,2]
[382676980,1756707039126,-684.42,0.00014027,2]
[382676981,1756707039135,-854.57,0.00014027,2]
[382676982,1756707039145,-480.0,0.00014027,2]
[382676983,1756707039155,-480.0,0.00014027,2]
[382676984,1756707039164,-480.0,0.00014027,2]
[382676985,1756707039174,-480.0,0.00014027,2]
[382676986,1756707039184,-571.19,0.00014027,2]
[382676987,1756707039194,-593.65,0.00014027,2]
[382676988,1756707039204,-480.0,0.00014027,2]
[382676989,1756707039214,-527.50644784,0.00014027,2]
[382676990,1756707039224,-480.0,0.00014027,2]
[382676991,1756707039234,-724.42,0.00014027,2]
[382676992,1756707039244,-441.30670052,0.00014028,2]
[382676993,1756707039253,-481.78947905,0.00014028,2]
[382676994,1756707039263,-481.4279086,0.00014028,2]
[382676995,1756707039273,-252.0223145,0.00014029,2]
[382676996,1756707039283,-480.0,0.00014029,2]
[382676997,1756707039292,-286.71208656,0.00014029,2]
[382676998,1756707039301,-744.14,0.00014029,2]
[382676999,1756707039311,-480.0,0.00014029,2]
[382677000,1756707039321,-759.3,0.00014029,2]
[382677001,1756707039330,-480.0,0.00014029,2]
[382677002,1756707039340,-480.0,0.00014029,2]
[382677003,1756707039351,-585.17,0.00014029,2]
[382677004,1756707039361,-480.0,0.00014029,2]
[382677005,1756707039371,-528.19,0.00014029,2]
[382677006,1756707039381,-480.0,0.00014029,2]
[382677007,1756707039392,-480.0,0.00014029,2]
[382677008,1756707039402,-480.0,0.00014029,2]
[382677009,1756707039412,-480.0,0.00014029,2]
[382677010,1756707039423,-480.0,0.00014029,2]
[382677011,1756707039434,-1127.17,0.00014029,2]
[382677012,1756707039444,-1038.16,0.00014029,2]
[382677013,1756707039454,-480.0,0.00014029,2]
[382677014,1756707039464,-480.0,0.00014029,2]
[382677015,1756707039474,-480.0,0.00014029,2]
[382677016,1756707039483,-480.0,0.00014029,2]
[382677017,1756707039493,-480.0,0.00014029,2]
[382677018,1756707039502,-480.0,0.00014029,2]
[382677019,1756707039512,-1041.99,0.00014029,2]
[382677020,1756707039522,-917.34,0.00014029,2]
[382677021,1756707039532,-480.0,0.00014029,2]
[382677022,1756707039721,-543.37975257,0.00014029,2]
[382677023,1756707039731,-480.0,0.00014029,2]
[382677024,1756707039741,-480.0,0.00014029,2]
[382677025,1756707039751,-908.93,0.00014029,2]
[382677026,1756707039760,-480.0,0.00014029,2]
[382677027,1756707039770,-480.0,0.00014029,2]
[382677028,1756707039781,-480.0,0.00014029,2]
[382677029,1756707039791,-480.0,0.00014029,2]
[382677030,1756707039801,-621.85474768,0.00014029,2]
[382677031,1756707039811,-551.02,0.00014029,2]
[382677032,1756707039821,-480.0,0.00014029,2]
[382677033,1756707039831,-781.66,0.00014029,2]
[382677034,1756707039841,-480.0,0.00014029,2]
[382677035,1756707039851,-963.4,0.00014029,2]
[382677036,1756707039861,-1041.18,0.00014029,2]
[382677037,1756707039871,-480.0,0.00014029,2]
[382677038,1756707039881,-777.18,0.00014029,2]
[382677039,1756707039891,-480.0,0.00014029,2]
[382677040,1756707039901,-480.0,0.00014029,2]
[382677041,1756707039911,-1179.02,0.00014029,2]
[382677042,1756707039921,-967.25,0.00014029,2]
[382677043,1756707039930,-803.4,0.00014029,2]
[382677044,1756707039940,-990.18,0.00014029,2]
[382677045,1756707039949,-487.47036349,0.00014029,2]
[382677046,1756707039959,-1251.41,0.00014029,2]
[382677047,1756707039969,-1116.51,0.00014029,2]
[382677048,1756707039979,-550.84,0.00014029,2]
[382677050,1756707040000,-480.0,0.00014029,2]
[382677051,1756707040012,-3175.38,0.00014029,2]
[382677052,1756707040023,-1869.18,0.00014029,2]
[382677053,1756707040034,-1173.55,0.00014029,2]
[382677054,1756707040045,-480.0,0.00014029,2]
[382677055,1756707040056,-4374.8,0.00014029,2]
[382677056,1756707040067,-480.0,0.00014029,2]
[382677058,1756707040078,-963.93,0.00014029,2]
[382677059,1756707040088,-482.12818552,0.00014029,2]
[382677060,1756707040099,-691.91,0.00014029,2]
[382677061,1756707040111,-480.0,0.00014029,2]
[382677062,1756707040121,-480.0,0.00014029,2]
[382677063,1756707040132,-621.51,0.00014029,2]
[382677064,1756707040143,-480.0,0.00014029,2]
[382677065,1756707040154,-1004.14,0.00014029,2]
[382677066,1756707040165,-1207.99,0.00014029,2]
[382677067,1756707040176,-1733.59,0.00014029,2]
[382677068,1756707040187,-4150.3,0.00014029,2]
[382677069,1756707040198,-542.2,0.00014029,2]
[382677070,1756707040209,-1111.82,0.00014029,2]
[382677071,1756707040219,-543.81,0.00014029,2]
[382677072,1756707040231,-1636.29,0.00014029,2]
[382677073,1756707040241,-4342.96,0.00014029,2]
[382677074,1756707040252,-480.0,0.00014029,2]
[382677075,1756707040263,-1170.28,0.00014029,2]
[382677076,1756707040273,-481.42,0.00014029,2]
[382677077,1756707040284,-480.0,0.00014029,2]
[382677078,1756707040294,-613.17,0.00014029,2]
[382677079,1756707040305,-518.73,0.00014029,2]
[382677080,1756707040315,-3009.92,0.00014029,2]
[382677081,1756707040325,-1188.22,0.00014029,2]
[382677082,1756707040335,-480.0,0.0001403,2]
[382677083,1756707040346,-480.0,0.0001403,2]
[382677084,1756707040357,-480.0,0.0001403,2]
[382677085,1756707040367,-480.0,0.0001403,2]
[382677086,1756707040378,-480.0,0.0001403,2]
[382677087,1756707040388,-480.0,0.0001403,2]
[382677088,1756707040399,-480.0,0.0001403,2]
[382677089,1756707040408,-480.0,0.0001403,2]
[382677090,1756707040419,-480.0,0.0001403,2]
[382677091,1756707040429,-480.0,0.0001403,2]
[382677092,1756707040439,-761.88,0.0001403,2]
[382677093,1756707040449,-480.0,0.0001403,2]
[382677094,1756707040459,-482.02245497,0.0001403,2]
[382677095,1756707040469,-480.0,0.0001403,2]
[382677096,1756707040479,-480.0,0.0001403,2]
[382677097,1756707040489,-480.0,0.0001403,2]
[382677098,1756707040499,-480.0,0.0001403,2]
[382677099,1756707040510,-480.0,0.0001403,2]
[382677100,1756707040520,-480.0,0.0001403,2]
[382677101,1756707040530,-461.95064771,0.0001403,2]
[382677102,1756707040540,-756.13,0.0001403,2]
[382677103,1756707040550,-480.0,0.0001403,2]
[382677104,1756707040560,-482.94364366,0.0001403,2]
[382677105,1756707040571,-783.78,0.0001403,2]
[382677106,1756707040581,-480.0,0.0001403,2]
[382677107,1756707040591,-480.0,0.0001403,2]
[382677108,1756707040601,-480.0,0.0001403,2]
[382677109,1756707040614,-1068.34,0.0001403,2]
[382677110,1756707040627,-443.27427644,0.0001403,2]
[382677111,1756707040637,-480.0,0.0001403,2]
[382677112,1756707040647,-480.0,0.0001403,2]
[382677113,1756707040657,-480.0,0.0001403,2]
[382677114,1756707040668,-480.0,0.0001403,2]
[382677115,1756707040678,-539.57,0.0001403,2]
[382677116,1756707040689,-480.0,0.0001403,2]
[382677117,1756707040699,-480.0,0.0001403,2]
[382677118,1756707040709,-480.0,0.0001403,2]
[382677119,1756707040719,-482.6522367,0.0001403,2]
[382677120,1756707040730,-480.0,0.0001403,2]
[382677121,1756707040740,-1074.16,0.0001403,2]
[382677122,1756707040750,-480.0,0.0001403,2]
[382677123,1756707040760,-480.0,0.0001403,2]
[382677124,1756707040769,-487.64572464,0.0001403,2]
[382677125,1756707040779,-480.0,0.0001403,2]
[382677126,1756707040788,-480.0,0.0001403,2]
[382677127,1756707040798,-480.0,0.0001403,2]
[382677128,1756707040808,-480.0,0.0001403,2]
[382677129,1756707040818,-997.17,0.0001403,2]
[382677130,1756707040827,-480.0,0.0001403,2]
[382677131,1756707040838,-480.0,0.0001403,2]
[382677132,1756707040847,-480.0,0.0001403,2]
[382677133,1756707040859,-480.0,0.0001403,2]
[382677134,1756707040869,-426.79235665,0.0001403,2]
[382677135,1756707040879,-480.0,0.0001403,2]
[382677136,1756707040888,-480.0,0.0001403,2]
[382677137,1756707040898,-480.0,0.0001403,2]
[382677138,1756707040908,-661.3,0.0001403,2]
[382677139,1756707040917,-549.67,0.0001403,2]
[382677140,1756707040927,-480.0,0.0001403,2]
[382677141,1756707040937,-480.0,0.0001403,2]
[382677142,1756707040947,-544.63,0.0001403,2]
[382677143,1756707040957,-464.48101285,0.0001403,2]
[382677144,1756707040967,-480.0,0.0001403,2]
[382677145,1756707040977,-480.0,0.0001403,2]
[382677146,1756707040987,-480.0,0.0001403,2]
[382677147,1756707040997,-480.0,0.0001403,2]
[382677148,1756707041006,-555.65857154,0.0001403,2]
[382677149,1756707041017,-480.0,0.0001403,2]
[382677150,1756707041027,-480.0,0.0001403,2]
[382677151,1756707041037,-522.31,0.0001403,2]
[382677152,1756707041047,-480.0,0.0001403,2]
[382677153,1756707041058,-480.0,0.0001403,2]
[382677154,1756707041067,-166.99133856,0.0001403,2]
[382677155,1756707041077,-484.08489129,0.0001403,2]
[382677156,1756707041087,-480.0,0.0001403,2]
[382677157,1756707041097,-1091.05,0.0001403,2]
[382677158,1756707041108,-480.0,0.0001403,2]
[382677159,1756707041118,-480.0,0.0001403,2]
[382677160,1756707041128,-480.0,0.0001403,2]
[382677161,1756707041138,-480.0,0.0001403,2]
[382677162,1756707041147,-482.11932971,0.0001403,2]
[382677163,1756707041156,-480.0,0.0001403,2]
[382677164,1756707041166,-480.0,0.0001403,2]
[382677165,1756707041176,-480.0,0.0001403,2]
[382677166,1756707041186,-480.0,0.0001403,2]
[382677167,1756707041195,-480.0,0.0001403,2]
[382677168,1756707041205,-482.1141293,0.0001403,2]
[382677169,1756707041216,-480.0,0.0001403,2]
[382677170,1756707041225,-358.63503718,0.0001403,2]
[382677171,1756707041235,-480.0,0.0001403,2]
[382677172,1756707041245,-298.92234113,0.0001403,2]
[382677173,1756707041256,-480.0,0.0001403,2]
[382677174,1756707041265,-480.0,0.0001403,2]
[382677175,1756707041275,-480.0,0.0001403,2]
[382677176,1756707041285,-480.0,0.0001403,2]
[382677177,1756707041295,-481.58686679,0.0001403,2]
[382677178,1756707041305,-480.0,0.0001403,2]
[382677179,1756707041314,-481.86596231,0.0001403,2]
[382677180,1756707041324,-872.62,0.0001403,2]
[382677181,1756707041333,-480.0,0.0001403,2]
[382677182,1756707041343,-908.45,0.0001403,2]
[382677183,1756707041352,-480.0,0.0001403,2]
[382677184,1756707041362,-980.09,0.0001403,2]
[382677185,1756707041372,-480.0,0.0001403,2]
[382677186,1756707041382,-480.0,0.0001403,2]
[382677187,1756707041391,-480.0,0.0001403,2]
[382677188,1756707041401,-513.3,0.0001403,2]
[382677189,1756707041412,-508.74794958,0.0001403,2]
[382677190,1756707041421,-480.0,0.0001403,2]
[382677191,1756707041431,-480.0,0.0001403,2]
[382677193,1756707041441,-480.0,0.0001403,2]
[382677194,1756707041451,-480.0,0.0001403,2]
[382677195,1756707041461,-480.0,0.0001403,2]
[382677196,1756707041471,-480.0,0.0001403,2]
[382677197,1756707041481,-480.0,0.0001403,2]
[382677198,1756707041490,-481.34972911,0.0001403,2]
[382677199,1756707041500,-480.0,0.0001403,2]
[382677200,1756707041509,-488.04670965,0.0001403,2]
[382677201,1756707041519,-482.26,0.0001403,2]
[382677202,1756707041529,-480.0,0.0001403,2]
[382677203,1756707041539,-480.0,0.0001403,2]
[382677204,1756707041548,-480.0,0.0001403,2]
[382677205,1756707041558,-549.41,0.0001403,2]
[382677206,1756707041567,-484.09405176,0.0001403,2]
[382677207,1756707041577,-480.0,0.0001403,2]
[382677208,1756707041586,-481.88062441,0.0001403,2]
[382677209,1756707041596,-480.0,0.0001403,2]
[382677210,1756707041605,-1004.41169497,0.0001403,2]
[382677211,1756707041615,-480.0,0.0001403,2]
[382677212,1756707041627,-481.4195146,0.0001403,2]
[382677213,1756707041637,-480.0,0.0001403,2]
[382677214,1756707041646,-480.0,0.0001403,2]
[382677215,1756707041656,-480.0,0.0001403,2]
[382677216,1756707041667,-481.71509124,0.0001403,2]
[382677217,1756707041677,-480.0,0.0001403,2]
[382677218,1756707041686,-480.0,0.0001403,2]
[382677219,1756707041697,-500.0,0.0001403,2]
[382677220,1756707041706,-370000.0,0.0001403,2]
[382677221,1756707041715,-769.86525538,0.00014064,2]
[382677222,1756707041725,-480.0,0.0001413,2]
[382677223,1756707041734,-500.0,0.0001413,2]
[382677224,1756707041745,-482.4630958,0.0001413,2]
[382677225,1756707041754,-480.0,0.0001413,2]
[382677226,1756707041764,-482.14795609,0.0001413,2]
[382677227,1756707041773,-483.7328793,0.0001413,2]
[382677228,1756707041782,-500.0,0.0001413,2]
[382677229,1756707041792,-517.78400873,0.0001413,2]
[382677230,1756707041801,-480.0,0.0001413,2]
[382677231,1756707041811,-743.88,0.0001413,2]
[382677232,1756707041820,-1072.45,0.0001413,2]
[382677233,1756707041830,-930.13,0.0001413,2]
[382677234,1756707041840,-541.23,0.0001413,2]
[382677235,1756707041849,-480.0,0.0001413,2]
[382677236,1756707041859,-635.16,0.0001413,2]
[382677237,1756707041868,-461.33591421,0.0001413,2]
[382677238,1756707041878,-554.4,0.0001413,2]
[382677239,1756707041887,-566.09,0.0001413,2]
[382677240,1756707041896,-480.0,0.0001413,2]
[382677241,1756707041906,-480.0,0.0001413,2]
[382677242,1756707041915,-480.0,0.0001413,2]
[382677243,1756707041924,-480.0,0.0001413,2]
[382677244,1756707041934,-798.09,0.0001413,2]
[382677245,1756707041944,-555.15,0.0001413,2]
[382677246,1756707041953,-461.84390019,0.0001413,2]
[382677247,1756707041963,-595.96283006,0.0001413,2]
[382677248,1756707041973,-480.0,0.0001413,2]
[382677249,1756707041983,-281.95276499,0.0001413,2]
[382677250,1756707041992,-480.0,0.0001413,2]
[382677251,1756707042002,-828.13,0.0001413,2]
[382677253,1756707042011,-480.0,0.0001413,2]
[382677254,1756707042021,-480.0,0.0001413,2]
[382677255,1756707042030,-1391.13,0.0001413,2]
[382677256,1756707042040,-480.0,0.0001413,2]
[382677257,1756707042049,-480.0,0.0001413,2]
[382677258,1756707042059,-480.0,0.0001413,2]
[382677259,1756707042068,-561.62,0.0001413,2]
[382677260,1756707042078,-480.0,0.0001413,2]
[382677261,1756707042087,-199.38711018,0.0001413,2]
[382677262,1756707042097,-480.0,0.0001413,2]
[382677263,1756707042106,-480.0,0.0001413,2]
[382677264,1756707042116,-480.0,0.0001413,2]
[382677265,1756707042125,-480.0,0.0001413,2]
[382677266,1756707042135,-480.0,0.0001413,2]
[382677267,1756707042145,-518.0,0.0001413,2]
[382677268,1756707042154,-480.0,0.0001413,2]
[382677269,1756707042163,-769.86525538,0.00014199,2]
[382677270,1756707042173,-480.0,0.00014228,2]
[382677271,1756707042183,-480.0,0.00014228,2]
[382677277,1756707042249,-669.08,0.00014228,2]
[382677279,1756707042259,-685.43,0.00014228,2]
[382677281,1756707042269,-480.0,0.00014228,2]
[382677283,1756707042278,-966.74,0.00014228,2]
[382677285,1756707042288,-480.0,0.00014228,2]
[382677287,1756707042297,-480.0,0.00014228,2]
[382677289,1756707042306,-480.0,0.00014228,2]
[382677291,1756707042316,-480.0,0.00014228,2]
[382677293,1756707042325,-480.0,0.00014228,2]
[382677295,1756707042334,-498.58,0.00014228,2]
[382677297,1756707042344,-481.31194408,0.00014229,2]
[382677299,1756707042353,-480.0,0.00014229,2]
[382677301,1756707042363,-480.0,0.00014229,2]
[382677303,1756707042372,-646.54,0.00014229,2]
[382677305,1756707042382,-480.0,0.00014229,2]
[382677307,1756707042391,-480.0,0.00014229,2]
[382677309,1756707042401,-480.0,0.00014229,2]
[382677311,1756707042411,-480.0,0.00014229,2]
[382677313,1756707042420,-500.0,0.00014229,2]
[382677315,1756707042431,-483.59585091,0.00014229,2]
[382677317,1756707042441,-480.0,0.00014229,2]
[382677319,1756707042451,-480.0,0.00014229,2]
[382677321,1756707042460,-480.0,0.00014229,2]
[382677323,1756707042470,-480.0,0.00014229,2]
[382677325,1756707042480,-480.0,0.00014229,2]
[382677327,1756707042491,-480.0,0.00014229,2]
[382677329,1756707042500,-480.0,0.00014229,2]
[382677331,1756707042510,-520.39,0.00014229,2]
[382677333,1756707042520,-318.72120526,0.00014229,2]
[382677335,1756707042530,-480.0,0.00014229,2]
[382677337,1756707042540,-480.0,0.00014229,2]
[382677339,1756707042550,-480.0,0.00014229,2]
[382677341,1756707042559,-480.0,0.00014229,2]
[382677343,1756707042568,-480.0,0.00014229,2]
[382677345,1756707042578,-480.0,0.00014229,2]
[382677347,1756707042587,-480.0,0.00014229,2]
[382677349,1756707042596,-480.0,0.00014229,2]
[382677351,1756707042606,-480.0,0.00014229,2]
[382677353,1756707042616,-480.0,0.00014229,2]
[382677355,1756707042627,-685.49,0.00014229,2]
[382677357,1756707042636,-480.0,0.00014229,2]
[382677359,1756707042646,-480.0,0.00014229,2]
[382677361,1756707042656,-480.0,0.00014229,2]
[382677363,1756707042665,-480.0,0.00014229,2]
[382677365,1756707042675,-480.0,0.00014229,2]
[382677367,1756707042684,-480.0,0.00014229,2]
[382677369,1756707042694,-480.61676135,0.00014229,2]
[382677371,1756707042703,-480.0,0.00014229,2]
[382677373,1756707042713,-480.0,0.00014229,2]
[382677375,1756707042722,-585.8,0.00014229,2]
[382677377,1756707042731,-857.87,0.00014229,2]
[382677379,1756707042740,-480.0,0.00014229,2]
[382677381,1756707042750,-762.84,0.00014229,2]
[382677383,1756707042761,-480.0,0.00014229,2]
[382677385,1756707042770,-480.0,0.00014229,2]
[382677387,1756707042780,-480.0,0.00014229,2]
[382677389,1756707042789,-480.0,0.00014229,2]
[382677391,1756707042798,-388.2519234,0.00014229,2]
[382677393,1756707042807,-480.0,0.00014229,2]
[382677395,1756707042816,-480.0,0.00014229,2]
[382677397,1756707042825,-480.0,0.00014229,2]
[382677399,1756707042834,-480.0,0.00014229,2]
[382677401,1756707042844,-480.0,0.00014229,2]
[382677403,1756707042853,-481.93176269,0.00014229,2]
[382677405,1756707042864,-570.52,0.00014229,2]
[382677407,1756707042873,-480.0,0.00014229,2]
[382677409,1756707042883,-480.0,0.00014229,2]
[382677411,1756707042892,-1133.55,0.00014229,2]
[382677413,1756707042901,-666.07,0.00014229,2]
[382677415,1756707042911,-480.0,0.00014229,2]
[382677417,1756707042920,-480.0,0.00014229,2]
[382677419,1756707042930,-480.0,0.00014229,2]
[382677421,1756707042939,-480.0,0.00014229,2]
[382677423,1756707042948,-480.0,0.00014229,2]
[382677425,1756707042958,-480.0,0.00014229,2]
[382677427,1756707042968,-480.0,0.00014229,2]
[382677429,1756707042978,-480.0,0.00014229,2]
[382677431,1756707042987,-480.0,0.00014231,2]
[382677433,1756707042997,-487.26,0.00014231,2]
[382677435,1756707043007,-480.0,0.00014231,2]
[382677437,1756707043016,-480.0,0.00014231,2]
[382677440,1756707043025,-160.0,0.00014251,2]
[382677442,1756707043034,-480.0,0.00014298,2]
[382677444,1756707043043,-480.0,0.00014299,2]
[382677445,1756707043051,-480.0,0.00014299,2]
[382677448,1756707043061,-783.08,0.00014299,2]
[382677450,1756707043071,-480.0,0.00014299,2]
[382677452,1756707043080,-1068.76,0.00014299,2]
[382677453,1756707043090,-827.48,0.000143,2]
[382677455,1756707043099,-194.02137911,0.000143,2]
[382677457,1756707043109,-480.0,0.000143,2]